fUSD/lending_fUSD_20240827
["ID","MTS","AMOUNT","RATE_DAILY","PERIOD"]
[336186215,1724727042180,-507.1,0.00010999,2]
[336186217,1724727042190,-507.1,0.00010999,2]
[336186219,1724727042200,-507.1,0.00010999,2]
[336186221,1724727042212,-507.1,0.00010999,2]
[336186223,1724727042221,-507.1,0.00010999,2]
[336186225,1724727042231,-507.1,0.00010999,2]
[336186227,1724727042241,-507.1,0.00010999,2]
[336186229,1724727042250,-507.1,0.00010999,2]
[336186231,1724727042260,-507.1,0.00010999,2]
[336186233,1724727042269,-507.1,0.00010999,2]
[336186235,1724727042279,-507.1,0.00010999,2]
[336186237,1724727042288,-507.1,0.00010999,2]
[336186239,1724727042299,-229.97584443,0.00010999,2]
[336186241,1724727042309,-507.1,0.00010999,2]
[336186243,1724727042321,-507.1,0.00010999,2]
[336186245,1724727042330,-507.30594807,0.00010999,2]
[336186247,1724727042340,-500.0,0.00010999,2]
[336186249,1724727042349,-605.80350131,0.00010999,2]
[336186251,1724727042358,-500.0,0.00010999,2]
[336186253,1724727042368,-500.0,0.00010999,2]
[336186255,1724727042377,-500.0,0.00010999,2]
[336186257,1724727042386,-500.0,0.00010999,2]
[336186259,1724727042396,-500.0,0.00010999,2]
[336186261,1724727042406,-500.0,0.00010999,2]
[336186263,1724727042416,-176.726303,0.00010999,2]
[336186265,1724727042425,-500.0,0.00010999,2]
[336186267,1724727042435,-500.0,0.00010999,2]
[336186269,1724727042444,-500.0,0.00010999,2]
[336186271,1724727042454,-500.0,0.00010999,2]
[336186273,1724727042463,-500.0,0.00010999,2]
[336186275,1724727042472,-500.0,0.00010999,2]
[336186277,1724727042481,-500.0,0.00010999,2]
[336186279,1724727042491,-500.0,0.00010999,2]
[336186281,1724727042500,-500.0,0.00010999,2]
[336186283,1724727042509,-477.82953615,0.00010999,2]
[336186284,1724727042519,-500.0,0.00010999,2]
[336186286,1724727042528,-500.0,0.00010999,2]
[336186288,1724727042537,-500.0,0.00010999,2]
[336186290,1724727042547,-500.0,0.00010999,2]
[336186292,1724727042556,-500.0,0.00010999,2]
[336186294,1724727042565,-500.0,0.00010999,2]
[336186296,1724727042574,-500.0,0.00010999,2]
[336186298,1724727042584,-500.0,0.00010999,2]
[336186300,1724727042593,-18.56766883,0.00010999,2]
[336186469,1724727044262,-436.34171516,0.00010999,2]
[336186472,1724727044275,-45.09061601,0.00010999,2]
[336186474,1724727044285,-500.0,0.00010999,2]
[336186476,1724727044295,-500.0,0.00010999,2]
[336186478,1724727044305,-500.0,0.00010999,2]
[336186480,1724727044314,-500.0,0.00010999,2]
[336186482,1724727044323,-500.0,0.00010999,2]
[336186484,1724727044333,-500.0,0.00010999,2]
[336186486,1724727044342,-500.0,0.00010999,2]
[336186488,1724727044351,-500.0,0.00010999,2]
[336186490,1724727044360,-538.2213,0.00010999,2]
[336186492,1724727044370,-281.0176271,0.00010999,2]
[336186494,1724727044379,-306.73523209,0.00010999,2]
[336186496,1724727044389,-253.20255291,0.00010999,2]
[336186498,1724727044400,-500.0,0.00010999,2]
[336186500,1724727044409,-500.0,0.00010999,2]
[336186502,1724727044418,-500.0,0.00010999,2]
[336186504,1724727044427,-500.0,0.00010999,2]
[336186505,1724727044436,-500.0,0.00010999,2]
[336186507,1724727044446,-500.0,0.00010999,2]
[336186509,1724727044456,-500.0,0.00010999,2]
[336186512,1724727044467,-500.0,0.00010999,2]
[336186514,1724727044476,-358.62796294,0.00010999,2]
[336186516,1724727044485,-500.0,0.00010999,2]
[336186517,1724727044494,-166776.13194282,0.00011,2]
[336186519,1724727044504,-391542.97276622,0.00011,2]
[336186523,1724727044515,-33131.04051535,0.00011,2]
[336186673,1724727045992,-312.15244413,0.0001089,2]
[336188010,1724727060104,2109.86796266,4.781e-05,7]
[336188035,1724727086200,1673.21524212,0.0001,2]
[336188036,1724727091729,437.15872115,5.795e-05,2]
[336188037,1724727107025,1354.83602924,5.795e-05,2]
[336188038,1724727123460,86955.8315069,4.781e-05,7]
[336188039,1724727166321,155.27659037,7.024e-05,2]
[336188040,1724727397366,633.50396464,8.514e-05,2]
[336188041,1724727421483,274.81,8.232e-05,2]
[336188042,1724727555353,602.84647187,9.978e-05,2]
[336188043,1724727575721,349.72942752,9.978e-05,2]
[336188044,1724727617399,155.33961833,9.999e-05,2]
[336188045,1724727634988,783.7454454,9.999e-05,2]
[336188046,1724727913924,275.55,8.219e-05,2]
[336188047,1724727969867,672.0,9.984e-05,2]
[336188069,1724728105018,1682.65,9.926e-05,2]
[336188070,1724728138705,167.67,9.935e-05,2]
[336188080,1724728167891,2218.37663557,9.999e-05,2]
[336188108,1724728232176,-303.7941797,0.00010026,2]
[336188109,1724728232186,-250.0,0.0001005,2]
[336188110,1724728232196,-244.17,0.00010058,2]
[336188111,1724728232206,-1364.855253,0.00010058,2]
[336188112,1724728238082,-34522.004747,0.00010058,2]
[336188113,1724728238094,-3108.12,0.00010101,2]
[336188114,1724728238103,-265.86,0.0001012,2]
[336188115,1724728238112,-328.0,0.00010143,2]
[336188116,1724728238122,-275.55,0.00010477,2]
[336188117,1724728238131,-155.0,0.00010505,2]
[336188118,1724728238142,-524.46658305,0.00010713,2]
[336188119,1724728238151,-150.0,0.0001073,2]
[336188120,1724728238161,-150.0,0.00010822,2]
[336188121,1724728238173,-165.31607935,0.00010826,2]
[336188122,1724728238183,-3886.37358208,0.00010861,2]
[336188123,1724728238193,-783.7454454,0.00010861,2]
[336188124,1724728238203,-155.6835885,0.00010888,2]
[336188125,1724728238212,-753.54692,0.0001089,2]
[336188126,1724728238222,-155.0,0.0001089,2]
[336188127,1724728238233,-606.29385767,0.0001089,2]
[336188128,1724728238243,-150.0,0.00010899,2]
[336188129,1724728238253,-156.04513964,0.00010899,2]
[336188130,1724728238263,-486.13623312,0.00010899,2]
[336188131,1724728238272,-205.23061751,0.00010899,2]
[336188132,1724728238282,-502.06016491,0.000109,3]
[336188133,1724728238291,-12390.1298,0.000109,2]
[336188134,1724728238300,-150.0,0.000109,2]
[336188135,1724728238320,-790.46,0.000109,2]
[336188136,1724728238329,-1643.65,0.000109,2]
[336188137,1724728238338,-10348.07846492,0.000109,2]
[336188138,1724728238348,-155.82237817,0.00010949,2]
[336188139,1724728238357,-159.60847032,0.00010949,2]
[336188140,1724728238366,-437.14698269,0.00010949,2]
[336188141,1724728238375,-383.6628927,0.00010949,2]
[336188142,1724728238384,-2000.0,0.00010959,2]
[336188143,1724728238394,-170.9,0.00010959,2]
[336188144,1724728238406,-150.75,0.00010959,2]
[336188145,1724728238415,-250.0,0.00010959,2]
[336188146,1724728238424,-275.68457301,0.00010979,2]
[336188147,1724728238433,-155.25719629,0.00010979,2]
[336188148,1724728238442,-150.0,0.00010989,2]
[336188149,1724728238451,-164.66394059,0.00010989,2]
[336188150,1724728238462,-394.692302,0.00010989,2]
[336188151,1724728238471,-328.2488375,0.00010989,2]
[336188152,1724728238480,-155.40635191,0.00010989,2]
[336188153,1724728238490,-155.92021519,0.00010989,2]
[336188154,1724728238500,-237.21122903,0.00010993,2]
[336188155,1724728238509,-421.8487256,0.00010993,2]
[336188156,1724728238519,-216.27267624,0.00010993,2]
[336188157,1724728238528,-166.19296134,0.00010993,2]
[336188159,1724728238538,-150.0,0.00010997,2]
[336188161,1724728238547,-150.0,0.00010997,2]
[336188163,1724728238556,-150.0,0.00010997,2]
[336188165,1724728238568,-150.0,0.00010997,2]
[336188167,1724728238577,-150.0,0.00010997,2]
[336188169,1724728238586,-699.185763,0.00010997,2]
[336188171,1724728238597,-4939.326404,0.00010997,2]
[336188173,1724728238606,-348.2641883,0.00010997,2]
[336188175,1724728238615,-150.0,0.00010998,2]
[336188177,1724728238624,-150.0,0.00010998,2]
[336188179,1724728238634,-150.0,0.00010998,2]
[336188181,1724728238643,-150.0,0.00010998,2]
[336188183,1724728238652,-150.0,0.00010998,2]
[336188185,1724728238662,-83388.06597141,0.00011,2]
[336188187,1724728238672,-12880.34670075,0.00011,2]
[336188340,1724728240501,-1582.20937114,0.00011,2]
[336188342,1724728240514,-630.88,0.00011,2]
[336188605,1724728243315,-63006.00000002,0.00011,2]
[336188894,1724728246206,-169.09,0.00010959,2]
[336188896,1724728246217,-89548.31898727,0.00011,2]
[336192236,1724728393490,276.93,8.533e-05,2]
[336192237,1724728701330,1050.0,0.0001,2]
[336192238,1724728915808,277.67,8.219e-05,2]
[336192239,1724729010381,2387.08,0.0001,2]
[336192240,1724729042306,537.6,9.948e-05,2]
[336192241,1724729136386,300.0,9.5e-05,2]
[336192243,1724729154843,247.06,9.945e-05,2]
[336192245,1724729229470,212.69,9.923e-05,2]
[336192252,1724729304713,937.78,9.989e-05,2]
[336192262,1724729366454,306.88,9.908e-05,2]
[336192268,1724729393627,408.33137705,9.999e-05,2]
[336192282,1724729432425,-216.77,0.00010029,2]
[336192283,1724729432435,-462.4,0.000104,2]
[336192284,1724729432444,-155.0,0.00010471,2]
[336192285,1724729432454,-277.67,0.00010475,2]
[336192286,1724729432463,-188.632966,0.00010555,2]
[336192287,1724729432472,-188.632966,0.00010555,2]
[336192288,1724729432481,-1299.26485006,0.00010713,2]
[336192289,1724729432495,-118.52455318,0.00010756,2]
[336192290,1724729432507,-31.47544682,0.00010756,2]
[336192291,1724729432517,-150.0,0.00010775,2]
[336192292,1724729432526,-6115.82455318,0.0001078,2]
[336192293,1724729432537,-375.52562621,0.0001078,2]
[336192294,1724729432548,-2001.3228468,0.0001078,2]
[336192295,1724729432559,-1285.09495946,0.0001078,2]
[336192299,1724729438694,-724.02453146,0.00010713,2]
[336192300,1724729438705,-16017.35926067,0.0001078,2]
[336192461,1724729440463,-285.6451416,0.0001078,2]
[336192477,1724729440608,-4740.31545108,0.0001078,2]
[336192479,1724729440619,-2930.42354803,0.0001078,2]
[336192493,1724729440747,-291.88343201,0.0001078,2]
[336192507,1724729440874,-500.0,0.0001078,2]
[336192753,1724729443527,-401.47892665,0.0001078,2]
[336192767,1724729443660,-9594.85998182,0.0001078,2]
[336192769,1724729443670,-155.08606729,0.00010799,2]
[336192771,1724729443680,-427.02,0.000108,2]
[336192773,1724729443690,-357.05,0.000108,2]
[336192775,1724729443701,-150.0,0.000108,2]
[336192777,1724729443711,-150.0,0.000108,2]
[336192780,1724729443728,-791.12,0.000108,2]
[336192782,1724729443741,-531.76,0.000108,2]
[336192784,1724729443751,-421.66,0.000108,2]
[336192786,1724729443762,-314.18,0.000108,2]
[336192788,1724729443772,-150.0,0.000108,2]
[336192790,1724729443782,-150.0,0.000108,2]
[336192793,1724729443792,-150.0,0.000108,2]
[336192795,1724729443802,-150.0,0.000108,2]
[336192797,1724729443811,-357.05,0.000108,2]
[336192798,1724729443821,-791.12,0.000108,2]
[336192801,1724729443831,-427.02,0.000108,2]
[336192802,1724729443843,-150.0,0.000108,2]
[336192804,1724729443852,-531.76,0.000108,2]
[336192806,1724729443862,-421.66,0.000108,2]
[336192808,1724729443872,-150.99,0.00010802,2]
[336192810,1724729443881,-150.0,0.00010804,2]
[336192812,1724729443891,-165.30742633,0.00010813,2]
[336192814,1724729443901,-150.0,0.00010825,2]
[336192816,1724729443911,-150.0,0.00010879,2]
[336192818,1724729443921,-150.0,0.00010885,2]
[336192820,1724729443931,-220.87160417,0.00010888,2]
[336192822,1724729443941,-298.78963057,0.00010888,2]
[336192824,1724729443951,-150.0,0.00010888,2]
[336192826,1724729443961,-150.0,0.00010891,2]
[336192828,1724729443971,-150.0,0.000109,2]
[336192830,1724729443982,-531.76,0.000109,2]
[336192832,1724729443991,-302.09,0.000109,2]
[336192835,1724729444002,-150.0,0.000109,2]
[336192836,1724729444013,-287.52,0.000109,2]
[336192838,1724729444022,-150.0,0.000109,2]
[336192840,1724729444031,-421.66,0.000109,2]
[336192842,1724729444041,-427.02,0.000109,2]
[336192844,1724729444051,-427.02,0.000109,2]
[336192846,1724729444060,-150.0,0.000109,2]
[336192849,1724729444070,-531.76,0.000109,2]
[336192851,1724729444080,-421.66,0.000109,2]
[336192853,1724729444089,-357.05,0.000109,2]
[336192855,1724729444099,-150.0,0.000109,2]
[336192856,1724729444108,-791.12,0.000109,2]
[336192859,1724729444118,-150.0,0.000109,2]
[336192860,1724729444128,-150.0,0.000109,2]
[336192862,1724729444138,-150.0,0.000109,2]
[336192864,1724729444148,-421.66,0.000109,2]
[336192866,1724729444158,-150.0,0.000109,2]
[336192868,1724729444168,-427.02,0.000109,2]
[336192870,1724729444177,-150.0,0.000109,2]
[336192872,1724729444187,-150.0,0.000109,2]
[336192874,1724729444197,-150.0,0.000109,2]
[336192876,1724729444207,-531.76,0.000109,2]
[336192878,1724729444216,-791.12,0.000109,2]
[336192880,1724729444226,-150.0,0.000109,2]
[336192882,1724729444236,-150.0,0.000109,2]
[336192885,1724729444246,-357.05,0.000109,2]
[336192886,1724729444255,-531.76,0.000109,2]
[336192888,1724729444265,-427.02,0.000109,2]
[336192890,1724729444275,-276.13,0.000109,2]
[336192892,1724729444284,-421.66,0.000109,2]
[336192894,1724729444294,-150.0,0.000109,2]
[336192896,1724729444304,-150.0,0.000109,2]
[336192898,1724729444314,-150.0,0.000109,2]
[336192900,1724729444323,-150.0,0.000109,2]
[336192902,1724729444333,-357.05,0.000109,2]
[336192904,1724729444343,-791.12,0.000109,2]
[336192906,1724729444353,-150.0,0.000109,2]
[336192908,1724729444363,-427.02,0.000109,2]
[336192910,1724729444373,-150.0,0.000109,2]
[336192913,1724729444383,-958.46,0.000109,2]
[336192915,1724729444393,-150.0,0.000109,2]
[336192917,1724729444402,-421.66,0.000109,2]
[336192919,1724729444412,-531.76,0.000109,2]
[336192921,1724729444422,-357.05,0.000109,2]
[336192923,1724729444431,-150.0,0.000109,2]
[336192925,1724729444441,-7032.33582052,0.000109,2]
[336192926,1724729444451,-531.76,0.000109,2]
[336192928,1724729444461,-150.0,0.000109,2]
[336192930,1724729444471,-150.0,0.000109,2]
[336192932,1724729444480,-357.05,0.000109,2]
[336192934,1724729444493,-419.23,0.000109,2]
[336192936,1724729444502,-427.02,0.000109,2]
[336192938,1724729444513,-150.0,0.000109,2]
[336192940,1724729444523,-531.76,0.000109,2]
[336192942,1724729444532,-427.02,0.000109,2]
[336192944,1724729444542,-357.05,0.000109,2]
[336192946,1724729444552,-150.0,0.000109,2]
[336192948,1724729444562,-150.0,0.000109,2]
[336192950,1724729444572,-427.02,0.000109,2]
[336192952,1724729444582,-150.0,0.000109,2]
[336192954,1724729444591,-150.0,0.00010908,2]
[336192956,1724729444602,-155.16144136,0.00010949,2]
[336192958,1724729444611,-2000.0,0.00010959,2]
[336192960,1724729444621,-254.07,0.00010959,2]
[336192962,1724729444631,-250.0,0.00010959,2]
[336192965,1724729444642,-150.0,0.00010967,2]
[336192966,1724729444652,-6962.54269988,0.00010979,2]
[336192968,1724729444661,-1923.0,0.00010989,2]
[336192970,1724729444670,-567.176,0.00010989,2]
[336192972,1724729444680,-1257.078,0.00010989,2]
[336192974,1724729444689,-622.577,0.00010989,2]
[336192976,1724729444699,-296.07840256,0.00010993,2]
[336192978,1724729444708,-150.0,0.00010996,2]
[336192980,1724729444717,-1905.6875897,0.00010997,2]
[336192981,1724729444726,-4903.3331745,0.00010997,2]
[336192983,1724729444736,-1103.4260558,0.00010997,2]
[336192985,1724729444745,-317.5626806,0.00010997,2]
[336192987,1724729444755,-150.0,0.00010997,2]
[336192989,1724729444764,-150.0,0.00010997,2]
[336192991,1724729444773,-150.0,0.00010997,2]
[336192993,1724729444783,-150.0,0.00010997,2]
[336192995,1724729444794,-150.0,0.00010997,2]
[336192997,1724729444804,-175.1900302,0.00010997,2]
[336192999,1724729444814,-150.0,0.00010998,2]
[336193001,1724729444824,-150.0,0.00010998,2]
[336193003,1724729444834,-150.0,0.00010998,2]
[336193005,1724729444843,-150.0,0.00010998,2]
[336193006,1724729444853,-150.0,0.00010998,2]
[336193008,1724729444862,-304.37876316,0.00010999,2]
[336193010,1724729444871,-338.811804,0.00010999,2]
[336193012,1724729444881,-172.900637,0.00010999,2]
[336193014,1724729444891,-329.663735,0.00010999,2]
[336193016,1724729444900,-568.56,0.00010999,2]
[336193018,1724729444909,-500.0,0.00010999,2]
[336193020,1724729444918,-500.0,0.00010999,2]
[336193022,1724729444928,-500.0,0.00010999,2]
[336193024,1724729444937,-506.96794187,0.00010999,2]
[336193026,1724729444946,-500.0,0.00010999,2]
[336193028,1724729444956,-644.16,0.00010999,2]
[336193030,1724729444966,-604.40802056,0.00010999,2]
[336193032,1724729444975,-500.0,0.00010999,2]
[336193034,1724729444984,-500.0,0.00010999,2]
[336193036,1724729444993,-500.0,0.00010999,2]
[336193038,1724729445002,-500.0,0.00010999,2]
[336193040,1724729445014,-500.0,0.00010999,2]
[336193042,1724729445023,-500.0,0.00010999,2]
[336193044,1724729445032,-500.0,0.00010999,2]
[336193046,1724729445042,-500.0,0.00010999,2]
[336193048,1724729445051,-500.0,0.00010999,2]
[336193050,1724729445060,-500.0,0.00010999,2]
[336193052,1724729445070,-500.0,0.00010999,2]
[336193054,1724729445079,-500.0,0.00010999,2]
[336193056,1724729445088,-500.0,0.00010999,2]
[336193058,1724729445097,-500.0,0.00010999,2]
[336193060,1724729445106,-500.0,0.00010999,2]
[336193062,1724729445115,-500.0,0.00010999,2]
[336193064,1724729445124,-500.0,0.00010999,2]
[336193066,1724729445134,-369.90951085,0.00010999,2]
[336193068,1724729445143,-50833.60343708,0.00011,2]
[336193070,1724729445154,-196729.68332771,0.00011,2]
[336193188,1724729446324,-357.05,0.000109,2]
[336193190,1724729446334,-531.76,0.000109,2]
[336193192,1724729446343,-150.0,0.000109,2]
[336193194,1724729446353,-104.59519,0.00011,2]
[336193196,1724729446364,-1143.40519,0.00011,2]
[336193198,1724729446375,-285.56665977,0.00011,2]
[336193210,1724729446479,-668.54999999,0.00011,2]
[336193212,1724729446494,-608.35712949,0.00011,2]
[336193226,1724729446625,-1574.80638431,0.00011,2]
[336193773,1724729452130,264.57,8.591e-05,2]
[336194851,1724729708642,1276.21844793,9.999e-05,2]
[336194852,1724729714412,204.1551957,9.999e-05,2]
[336194853,1724729799584,3879.82904589,0.0001,2]
[336194854,1724729867262,629.05909233,9.999e-05,2]
[336194855,1724729939717,275.67946357,0.0001,2]
[336194856,1724729943526,266.0,8.219e-05,2]
[336194857,1724730116887,1710.12,9.969e-05,2]
[336194858,1724730260882,374.91,9.955e-05,2]
[336194868,1724730448249,282.4,8.219e-05,2]
[336194870,1724730504886,1050.0,0.0001,2]
[336194871,1724730511629,200.0,9.921e-05,2]
[336194877,1724730524206,408.33137705,9.999e-05,2]
[336194878,1724730534223,6209.26,9.951e-05,2]
[336194899,1724730606537,569.92,9.971e-05,2]
[336194937,1724730632310,-365.06759219,0.00010035,2]
[336194940,1724730632322,-65.01240781,0.00010035,2]
[336194943,1724730632332,-683.37668802,0.00010042,2]
[336194948,1724730632370,-620.09331198,0.00010042,2]
[336194950,1724730632380,-262.72675006,0.00010061,2]
[336194952,1724730632391,-2997.31324994,0.00010061,2]
[336194953,1724730632400,-186.49,0.00010081,2]
[336194954,1724730632410,-3795.6233293,0.00010097,2]
[336194955,1724730632420,-282.4,0.00010475,2]
[336194957,1724730632430,-758.53395694,0.00010505,2]
[336194958,1724730632440,-300.0,0.00010565,2]
[336194959,1724730632450,-300.0,0.00010565,2]
[336194960,1724730632459,-499.99,0.00010655,2]
[336194961,1724730632469,-1367.3541,0.00010656,2]
[336194962,1724730632479,-550.89,0.00010699,2]
[336194963,1724730632489,-155.0,0.00010852,2]
[336194964,1724730632498,-358.10515509,0.00010861,2]
[336194965,1724730632508,-219.05448022,0.00010861,2]
[336194966,1724730632517,-1231.13854236,0.00010861,2]
[336194967,1724730632528,-486.27391556,0.00010861,2]
[336194968,1724730632538,-284.9856433,0.00010862,2]
[336194969,1724730632547,-433.20023883,0.00010862,2]
[336194970,1724730632557,-156.22069929,0.00010862,2]
[336194971,1724730632567,-89.42668917,0.00010888,2]
[336194972,1724730632578,-564.09537489,0.00010888,2]
[336194973,1724730632588,-150.0,0.00010899,2]
[336194974,1724730632597,-254.52037302,0.00010899,2]
[336194975,1724730632609,-235.57605943,0.00010899,2]
[336194976,1724730632618,-59.87208241,0.000109,2]
[336194977,1724730632677,-90.12791759,0.000109,2]
[336194978,1724730632687,-150.0,0.000109,2]
[336194979,1724730632697,-150.0,0.000109,2]
[336194980,1724730632706,-427.02,0.000109,2]
[336194981,1724730632715,-531.76,0.000109,2]
[336194982,1724730632725,-357.05,0.000109,2]
[336194983,1724730632734,-150.0,0.000109,2]
[336194984,1724730632743,-531.76,0.000109,2]
[336194985,1724730632753,-150.0,0.000109,2]
[336194986,1724730632762,-357.05,0.000109,2]
[336194987,1724730632771,-427.02,0.000109,2]
[336194988,1724730632780,-545.22,0.000109,2]
[336194989,1724730632790,-333.16,0.000109,2]
[336194990,1724730632799,-357.05,0.000109,2]
[336194991,1724730632808,-447.5,0.000109,2]
[336194992,1724730632817,-150.0,0.000109,2]
[336194993,1724730632827,-1589.32107,0.0001094,2]
[336194994,1724730632836,-10372.64,0.00010949,2]
[336194995,1724730632848,-2000.0,0.00010959,2]
[336194996,1724730632858,-156.79,0.00010959,2]
[336194997,1724730632867,-250.0,0.00010959,2]
[336194998,1724730632877,-228.52699082,0.00010989,2]
[336194999,1724730632886,-150.0,0.00010989,2]
[336195000,1724730632896,-150.231,0.00010989,2]
[336195001,1724730632905,-150.0,0.00010997,2]
[336195002,1724730632915,-150.0,0.00010997,2]
[336195003,1724730632925,-150.0,0.00010997,2]
[336195004,1724730632934,-150.0,0.00010997,2]
[336195005,1724730632946,-150.0,0.00010997,2]
[336195006,1724730632955,-2319.2418563,0.00010997,2]
[336195007,1724730632966,-237.3968832,0.00010997,2]
[336195008,1724730632976,-1241.5476879,0.00010997,2]
[336195009,1724730632985,-933.4519063,0.00010997,2]
[336195010,1724730632995,-150.0,0.00010998,2]
[336195011,1724730633006,-150.0,0.00010998,2]
[336195012,1724730633016,-150.0,0.00010998,2]
[336195013,1724730633025,-150.0,0.00010998,2]
[336195014,1724730633035,-150.0,0.00010998,2]
[336195015,1724730633044,-304.37876316,0.00010999,2]
[336195016,1724730633053,-500.0,0.00010999,2]
[336195017,1724730633063,-500.0,0.00010999,2]
[336195018,1724730633072,-500.0,0.00010999,2]
[336195019,1724730633082,-500.0,0.00010999,2]
[336195020,1724730633091,-500.0,0.00010999,2]
[336195021,1724730633295,-500.0,0.00010999,2]
[336195022,1724730633305,-500.0,0.00010999,2]
[336195023,1724730633314,-500.0,0.00010999,2]
[336195024,1724730633325,-500.0,0.00010999,2]
[336195025,1724730633334,-500.0,0.00010999,2]
[336195026,1724730633343,-500.0,0.00010999,2]
[336195027,1724730633353,-500.0,0.00010999,2]
[336195028,1724730633363,-500.0,0.00010999,2]
[336195029,1724730633372,-435.83311291,0.00010999,2]
[336195030,1724730633382,-500.0,0.00010999,2]
[336195031,1724730633392,-500.0,0.00010999,2]
[336195032,1724730633402,-521.95401307,0.00010999,2]
[336195033,1724730633411,-500.0,0.00010999,2]
[336195034,1724730633420,-500.0,0.00010999,2]
[336195035,1724730633430,-500.0,0.00010999,2]
[336195036,1724730633440,-500.0,0.00010999,2]
[336195037,1724730633453,-500.0,0.00010999,2]
[336195038,1724730633463,-500.0,0.00010999,2]
[336195039,1724730633472,-500.0,0.00010999,2]
[336195040,1724730633482,-500.0,0.00010999,2]
[336195041,1724730633492,-500.0,0.00010999,2]
[336195042,1724730633502,-500.0,0.00010999,2]
[336195043,1724730633511,-500.0,0.00010999,2]
[336195044,1724730633521,-502.55,0.00010999,2]
[336195045,1724730633531,-500.0,0.00010999,2]
[336195046,1724730633541,-500.0,0.00010999,2]
[336195047,1724730633550,-500.0,0.00010999,2]
[336195048,1724730633560,-500.0,0.00010999,2]
[336195049,1724730633570,-500.0,0.00010999,2]
[336195050,1724730633582,-500.0,0.00010999,2]
[336195051,1724730633592,-500.0,0.00010999,2]
[336195052,1724730633602,-500.0,0.00010999,2]
[336195053,1724730633612,-253.05,0.00010999,2]
[336195054,1724730633622,-500.0,0.00010999,2]
[336195055,1724730633631,-500.0,0.00010999,2]
[336195056,1724730633642,-500.0,0.00010999,2]
[336195057,1724730633651,-158.6329,0.00010999,2]
[336195058,1724730633660,-500.0,0.00010999,2]
[336195059,1724730633670,-500.0,0.00010999,2]
[336195060,1724730633679,-157.96589448,0.00010999,2]
[336195061,1724730633690,-500.0,0.00010999,2]
[336195062,1724730633699,-500.0,0.00010999,2]
[336195063,1724730633708,-500.0,0.00010999,2]
[336195064,1724730633717,-581.91809574,0.00010999,2]
[336195065,1724730633727,-500.0,0.00010999,2]
[336195066,1724730633736,-569.05213346,0.00010999,2]
[336195067,1724730633746,-500.0,0.00010999,2]
[336195068,1724730633756,-500.0,0.00010999,2]
[336195069,1724730633765,-500.0,0.00010999,2]
[336195070,1724730633774,-500.0,0.00010999,2]
[336195071,1724730633784,-500.0,0.00010999,2]
[336195072,1724730633793,-500.0,0.00010999,2]
[336195073,1724730633803,-500.0,0.00010999,2]
[336195074,1724730633816,-500.0,0.00010999,2]
[336195075,1724730633830,-500.0,0.00010999,2]
[336195076,1724730633841,-500.0,0.00010999,2]
[336195077,1724730633851,-500.0,0.00010999,2]
[336195078,1724730633861,-500.0,0.00010999,2]